Cogmind - Beta 17 @@@ ROGUE MODE // 2026.08.16 @ 20:17:33 Player: P9H Result: Destroyed by Y-54 Guardian with Flak Gun Performance ------------- Evolutions (3) 1500 Regions Visited (5) 1000 Robots Destroyed (75) 375 Value Destroyed (2260) 2260 Prototype IDs (5) 100 Alien Tech Used (0) 0 Bonus (0) 0 TOTAL SCORE: 5235 Bonus ------- None Cogmind --------- Core Integrity 0/700 Matter 35/300 Energy 100/100 System Corruption 8% Temperature Hot (229) Movement Flying (1225) Ox17 Location -7/Storage Parts ------- > --- POWER (1) -------- (None) > --- PROPULSION (4) --- Improved VTOL Module > --- UTILITY (6) ------ Huge Storage Unit Visual Processing Unit Advanced Targeting Computer Microactuators Improved Propulsion Shielding > --- WEAPON (2) ------- Spear > --- INVENTORY (25) --- Light Ion Engine Light Ion Engine Light Nuclear Core Light Nuclear Core Micro Nuclear Core Flight Unit Improved Heat Sink Improved Melee Analysis Suite Hacking Suite Hacking Suite Missile Launcher Peak State ------------ > --- POWER ------------ Micro Nuclear Core > --- PROPULSION ------- Flight Unit VTOL Module VTOL Module Improved VTOL Module > --- UTILITY ---------- Huge Storage Unit Advanced Weight Redist. System Visual Processing Unit Advanced Targeting Computer Microactuators Improved Propulsion Shielding > --- WEAPON ----------- Great Maul Spear > --- INVENTORY -------- Light Ion Engine Light Ion Engine Light Nuclear Core Light Nuclear Core Micro Nuclear Core Flight Unit Improved Heat Sink Improved Melee Analysis Suite Improved Propulsion Shielding Hacking Suite Hacking Suite Missile Launcher [Rating: 39] Favorites ----------- Power Ion Engine Engine Ion Engine Power Core Micro Nuclear Core Propulsion Light Treads Treads Light Treads Wheel Armored Wheel Flight Unit Improved VTOL Module Utility Huge Storage Unit Device Heat Sink Storage Huge Storage Unit Processor Advanced Targeting Computer Protection Light Armor Plating Weapon Flak Cannon Energy Cannon Beam Cannon Ballistic Gun Assault Rifle Ballistic Cannon Flak Cannon Launcher Missile Launcher Impact Weapon Great Maul Piercing Weapon Spear Build | -11 -10 -9 -8 -7 -7 ------- Run | Yrd Mat Mat Mat Fac Sto Slots Evolved 6 | . . 2 2 2 . Power . | . . . . . . Propulsion 2 | . . . 1 1 . Utility 4 | . . 2 1 1 . Weapon . | . . . . . . Parts Attached 77 | 11 7 7 20 14 18 Power 13 | 2 3 . 4 1 3 Engine 10 | 2 3 . 3 . 2 Core 3 | . . . 1 1 1 Reactor . | . . . . . . Propulsion 25 | 4 . 2 3 9 7 Treads 6 | 2 . 2 2 . . Leg . | . . . . . . Wheel 11 | 2 . . . 9 . Hover . | . . . . . . Flight 8 | . . . 1 . 7 Utility 22 | 3 3 3 6 2 5 Device 12 | 2 1 1 3 2 3 Storage 3 | 1 2 . . . . Processor 3 | . . 1 2 . . Hackware . | . . . . . . Protection 4 | . . 1 1 . 2 Artifact . | . . . . . . Weapon 17 | 2 1 2 7 2 3 Energy Gun . | . . . . . . Energy Cannon 2 | . 1 . 1 . . Ballistic Gun 6 | 2 . 2 1 1 . Ballistic Cannon 4 | . . . 4 . . Launcher 3 | . . . 1 . 2 Special Weapon . | . . . . . . Impact Weapon 1 | . . . . 1 . Slashing Weapon . | . . . . . . Piercing Weapon 1 | . . . . . 1 Special Melee Weapon . | . . . . . . Unidentified Prototypes 5 | . . . 5 . . Parts Lost 31 | . . 2 4 3 22 Power 2 | . . . . . 2 Propulsion 14 | . . . 2 2 10 Utility 10 | . . 2 2 1 5 Weapon 5 | . . . . . 5 Highest Loss Streak 8 | . . 2 2 2 8 To Critical Strikes 1 | . . . 1 . . Average Backups 21 | 3 13 24 24 24 21 Power 4 | . 2 5 5 6 6 Propulsion 8 | 1 4 11 11 7 5 Utility 5 | . 5 5 5 5 6 Weapon 3 | . 1 3 3 5 3 Tool/Special . | . . . . . . Unused Backups 33 | 1 2 5 8 8 9 Power 9 | . . 1 3 1 4 Propulsion 6 | 1 2 . 1 1 1 Utility 5 | . . . 2 . 3 Weapon 13 | . . 4 2 6 1 Tool/Special . | . . . . . . Average Slot Usage (%) 97 | . 100 97 95 97 90 Engine 7 | . 14 11 5 . 3 Core 2 | . . . 3 7 3 Treads 15 | . 28 22 15 . . Wheel 5 | . . . . 27 6 Flight 4 | . . . 8 . 20 Device 17 | . 14 21 14 20 20 Storage 10 | . 14 11 9 7 7 Processor 11 | . . 6 20 17 15 Energy Cannon 6 | . 12 11 4 . . Ballistic Gun 7 | . 15 11 4 1 1 Ballistic Cannon 3 | . . . 9 6 . Impact Weapon 1 | . . . . 5 4 Peak Build Rating 39 | 9 10 17 31 37 39 Average Rating 21 | 4 8 15 26 34 31 On Entrance 17 | . 9 10 17 31 36 Avg Prop Armor Cover (%) 1 | 5 . . 1 . . Naked Turns . | . . . . . . Heaviest Build 102 | 15 91 96 101 100 102 Greatest Support 48 | 40 40 40 40 48 36 Greatest Overweight (x) 8 | 2 2 2 5 3 8 Average Overweight (x) 1 | . . 2 2 2 3 Largest Inventory Capacity 25 | 8 25 25 25 25 25 Average Capacity 22 | 5 15 25 25 25 25 Most Carried 25 | 5 25 25 25 25 25 Average Carried 21 | 3 13 24 24 24 21 Final Capacity 25 | 8 25 25 25 25 25 Final Carried 25 | 5 25 25 25 25 11 Class Distribution -------------------- 60% | Mutant 38% | Scavenger-Mutant Dominant Class ---------------- Mutant | -10/Materials Mutant | -9/Materials Scavenger-Mutant | -8/Materials Scavenger-Mutant | -7/Factory Mutant | -7/Storage Resources | -11 -10 -9 -8 -7 -7 ----------- Run | Yrd Mat Mat Mat Fac Sto Matter Collected 1800 | 311 207 118 512 508 144 Remotely 738 | 133 . . . 508 97 Salvage Created 2474 | 119 605 431 614 479 226 Parts 149 | 5 40 23 44 23 14 Haulers Intercepted 4 | . 2 . 1 . 1 Recyclers Shooed 2 | . . 1 1 . . Parts Field Recycled . | . . . . . . Retrieved Matter . | . . . . . . Parts Self-Destructed . | . . . . . . Prevented . | . . . . . . Parts Restored . | . . . . . . Kills | -11 -10 -9 -8 -7 -7 ------- Run | Yrd Mat Mat Mat Fac Sto Combat Hostiles Destroyed 54 | . 11 10 16 10 7 Melee 6 | . . . . 4 2 Guns 12 | . 6 5 . 1 . Cannons 30 | . 5 5 16 2 2 AOE 2 | . . . . . 2 Classes Destroyed 13 | 2 6 2 1 2 . Worker 6 | . 1 1 . 1 3 Builder 3 | . . . . 1 2 Tunneler 1 | 1 . . . . . Hauler 4 | . 2 . 1 . 1 Recycler 4 | 1 . . 2 1 . Operator 1 | . 1 . . . . Watcher 2 | . 1 1 . . . Swarmer 10 | . 2 3 3 . 2 Grunt 26 | . 9 5 7 5 . Brawler 3 | . . 1 1 1 . Sentry 10 | . . 1 3 3 3 Hunter 3 | . . . 2 . 1 Programmer 2 | . . . . 1 1 Best Kill Streak 8 | 1 4 8 4 5 6 Combat Bots Only 5 | . 4 5 4 4 3 Max Kills in Single Turn 2 | 1 1 2 1 1 2 Gunslinging . | . . . . . . Exploded 1 | . . . . . 1 Melee 1 | . . . . 1 1 Uniques/NPCs Destroyed . | . . . . . . Combat | -11 -10 -9 -8 -7 -7 -------- Run | Yrd Mat Mat Mat Fac Sto Hostile Shots Fired 667 | . 41 38 88 57 443 Missed 209 | . 12 10 19 12 156 Hits 458 | . 29 28 69 45 287 Melee 7 | . . 2 1 4 . Projectile 451 | . 29 26 68 41 287 Critical Strikes 5 | . . 1 2 2 . Damage Taken 4668 | . 353 376 1052 585 2302 Core 924 | . 41 62 117 67 637 Absorbed by Shields . | . . . . . . Redirected to Shielding 128 | . . . . . 128 Core Remaining (%) 86 | 100 83 84 78 . . Volleys Fired 143 | 6 34 21 50 15 17 Largest 2 | 2 2 2 2 2 2 Hottest 105 | 40 80 83 105 74 75 Shots Fired 265 | 12 68 43 101 17 24 Gun 93 | 12 34 22 20 3 2 Cannon 160 | . 34 21 81 14 10 Launcher 12 | . . . . . 12 Special . | . . . . . . Kinetic 177 | 12 34 22 80 17 12 Thermal 76 | . 34 21 21 . . Explosive 12 | . . . . . 12 Electromagnetic . | . . . . . . Robot Hit Streak 24 | 2 11 9 19 24 8 Robot Miss Streak 6 | 2 3 2 6 3 5 Penetration Max . | . . . . . . Secondary Targets . | . . . . . . Shots Hit Robots 233 | 6 45 28 86 33 35 Core Hits 173 | 2 20 18 71 29 33 Critical Kills 4 | . . . . 3 1 Critical Parts Destroyed 6 | . . . . 4 2 Critical Strikes 11 | . . 1 . 7 3 Destroy 1 | . . 1 . . . Smash 10 | . . . . 7 3 Melee Attacks 62 | . . . . 37 25 Impact 60 | . . . . 37 23 Slashing . | . . . . . . Piercing 2 | . . . . . 2 Sneak Attacks 3 | . . . . 3 . Combat Hostiles . | . . . . . . Follow-up Attacks 2 | . . . . . 2 Damage Inflicted 5759 | 80 740 573 1509 1283 1574 Guns 873 | 80 272 252 182 65 22 Cannons 2606 | . 457 298 1327 342 182 Explosions 870 | . . . . . 870 Melee 1375 | . . . . 876 499 Ramming 35 | . 11 23 . . 1 Kinetic 2320 | 80 272 252 1105 407 204 Thermal 1159 | . 457 298 404 . . Explosive 870 | . . . . . 870 Electromagnetic . | . . . . . . Impact 1307 | . . . . 876 431 Slashing . | . . . . . . Piercing 68 | . . . . . 68 Highest Corruption 8 | . . 2 7 6 8 Average Corruption 5 | . . 2 5 5 6 Corruption Purged . | . . . . . . Corruption Blocked . | . . . . . . Effects 80 | . . 11 35 18 16 Message Errors 25 | . . 2 12 6 5 Matter Fused 22 | . . 4 9 3 6 Heat Flow Errors 7 | . . 2 3 1 1 Energy Discharges 11 | . . 1 4 6 . Parts Fused 1 | . . . . . 1 Data Loss (minor) 7 | . . 1 4 1 1 Data Loss (major) 1 | . . . . . 1 Misfires 4 | . . 1 2 . 1 Weapon Failures 2 | . . . 1 1 . Overload Shots . | . . . . . . Overflow Damage 304 | . . . . 215 89 Projectiles . | . . . . . . Explosions 12 | . . . . . 12 Melee 292 | . . . . 215 77 Knockbacks 29 | . . . 20 8 1 Impact 5 | . . . . 5 . Kinetic 24 | . . . 20 3 1 Secondary . | . . . . . . Self-Inflicted Damage . | . . . . . . Shots . | . . . . . . Rammed 6 | . 1 3 . . 2 Targets Rammed 6 | . 1 3 . . 2 Kicked . | . . . . . . Crushed . | . . . . . . Highest Temperature 285 | . 285 220 241 118 265 Average Temperature 74 | . 103 57 51 78 55 Received Heat Transfer 1470 | . 189 132 405 144 600 Siege Activations . | . . . . . . Martial Activations . | . . . . . . Shielding Activations . | . . . . . . Robots Disrupted . | . . . . . . Combat Hostiles . | . . . . . . Robots Corrupted 5 | . . . . 4 1 Combat Hostiles 4 | . . . . 3 1 Parts Fried 7 | . . . . 6 1 Impact Corruptions 11 | . . . . 9 2 Robots Melted . | . . . . . . Combat Hostiles . | . . . . . . Parts Melted . | . . . . . . Heat Transferred 2331 | . 962 629 740 . . Parts Sabotaged . | . . . . . . Parts Stolen . | . . . . . . Parts Stripped . | . . . . . . Power Chain Reactions . | . . . . . . Alert | -11 -10 -9 -8 -7 -7 ------- Run | Yrd Mat Mat Mat Fac Sto Maximum Alert Level 1 | . 1 . 1 . . Low Security (%) 99 | 100 99 100 97 100 100 Level 1 . | . . . 2 . . Level 2 . | . . . . . . Level 3 . | . . . . . . Level 4 . | . . . . . . Level 5 . | . . . . . . High Security . | . . . . . . Max Security . | . . . . . . Peak Influence 210 | 5 200 136 210 115 143 Initial 69 | . . 9 . 69 14 Average 61 | . 73 33 79 58 50 Influence Increases 1867 | 10 331 268 483 354 421 Destroy 0b10 Robot/C 1080 | . 220 200 320 200 140 Destroy 0b10 Robot/NC 105 | 10 25 10 15 15 30 Destroy Leader 302 | . 46 42 102 50 62 Successful Hack 8 | . 8 . . . . Disable Machine 45 | . . . . . 45 Destroy Structure 102 | . 2 1 1 14 84 Partial Spotted 15 | . 15 . . . . Lose Combat Pursuer 210 | . 15 15 45 75 60 Influence Decreases 1867 | 10 308 291 330 475 453 Entered New Map 116 | . . 14 . 84 18 Time Decay 1453 | 10 308 262 290 361 222 Lost Part 298 | . . 15 40 30 213 Squads Dispatched 11 | . 1 . 5 3 2 Investigation 1 | . . . 1 . . Extermination 2 | . . . . 1 1 Reinforcement 4 | . 1 . . 2 1 Assault . | . . . . . . Garrison 4 | . . . 4 . . Intercept . | . . . . . . Searches Triggered . | . . . . . . Construction Impeded 1 | . . . . . 1 Haulers Reinforced 1 | . . . . 1 . Active Scanning Responses . | . . . . . . Cargo Convoy Interrupts . | . . . . . . Stealth | -11 -10 -9 -8 -7 -7 --------- Run | Yrd Mat Mat Mat Fac Sto Distress Signals 13 | . 5 1 6 1 . Communications Jammed . | . . . . . . Distress Signals . | . . . . . . Times Spotted 102 | . 25 15 28 22 12 Peak Tracking Total 7 | . 5 7 5 5 5 Tactical Retreats 8 | . 1 1 2 3 1 Traps | -11 -10 -9 -8 -7 -7 ------- Run | Yrd Mat Mat Mat Fac Sto Traps Triggered 1 | . . . 1 . . Indirectly . | . . . . . . Trap Hack Attempts . | . . . . . . Triggered . | . . . . . . Disarmed . | . . . . . . Reprogrammed . | . . . . . . Reused . | . . . . . . Traps Extracted . | . . . . . . Installed . | . . . . . . Triggered . | . . . . . . Machines | -11 -10 -9 -8 -7 -7 ---------- Run | Yrd Mat Mat Mat Fac Sto Machines Disabled 3 | . . . . . 3 Max in Single Turn 2 | . . . . . 2 Machines Repaired . | . . . . . . Machines Dismantled . | . . . . . . Machines Sabotaged . | . . . . . . Overloaded Fab Kills . | . . . . . . Hacking | -11 -10 -9 -8 -7 -7 --------- Run | Yrd Mat Mat Mat Fac Sto Machines Accessed 7 | . 2 2 . 2 1 Terminals 7 | . 2 2 . 2 1 Fabricators . | . . . . . . Repair Stations . | . . . . . . Recycling Units . | . . . . . . Scanalyzers . | . . . . . . Garrison Access . | . . . . . . Total Hacks 13 | . 3 3 . 3 4 Successful 2 | . 1 1 . . . Failed 11 | . 2 2 . 3 4 Catastrophic 2 | . . 1 . 1 . Database Lockouts . | . . . . . . Manual 8 | . 3 3 . 2 . Terminals 13 | . 3 3 . 3 4 Fabricators . | . . . . . . Repair Stations . | . . . . . . Recycling Units . | . . . . . . Scanalyzers . | . . . . . . Garrison Access . | . . . . . . Terminal Hacks 2 | . 1 1 . . . Level Access Points 1 | . . 1 . . . Registered Components 1 | . 1 . . . . Fabricator Hacks . | . . . . . . Repair Station Hacks . | . . . . . . Recycling Unit Hacks . | . . . . . . Scanalyzer . | . . . . . . Garrison Access Hacks . | . . . . . . Unauthorized Hacks . | . . . . . . Terminals . | . . . . . . Fabricators . | . . . . . . Repair Stations . | . . . . . . Recycling Units . | . . . . . . Scanalyzers . | . . . . . . Garrison Access . | . . . . . . Data Cores Recovered . | . . . . . . Used . | . . . . . . Hacking Detections 4 | . 1 . . 2 1 Full Trace Events . | . . . . . . Feedback Events . | . . . . . . Feedback Blocked . | . . . . . . Robot Schematics Acquired . | . . . . . . Robots Built . | . . . . . . Authchips . | . . . . . . Time . | . . . . . . Total Robot Build Rating . | . . . . . . Part Schematics Acquired . | . . . . . . Parts Built . | . . . . . . Authchips . | . . . . . . Time . | . . . . . . Total Part Build Rating . | . . . . . . Part Studies Acquired . | . . . . . . Parts Repaired . | . . . . . . Time . | . . . . . . Parts Recycled . | . . . . . . Recycled Matter . | . . . . . . Retrieved Matter . | . . . . . . Retrieved Components . | . . . . . . Parts Scanalyzed . | . . . . . . Part Schematics Acquired . | . . . . . . Parts Damaged . | . . . . . . Bothacking | -11 -10 -9 -8 -7 -7 ------------ Run | Yrd Mat Mat Mat Fac Sto Used RIF Installer . | . . . . . . Robots Hacked . | . . . . . . Non-combat . | . . . . . . Combat . | . . . . . . Robot Hacks Applied . | . . . . . . Relay Couplers Released . | . . . . . . Fabnet Peak Effective % . | . . . . . . Robots Rewired . | . . . . . . Allies Hacked . | . . . . . . Hacks Repelled . | . . . . . . Allies | -11 -10 -9 -8 -7 -7 -------- Run | Yrd Mat Mat Mat Fac Sto Total Allies . | . . . . . . Largest Group . | . . . . . . Highest-Rated Group . | . . . . . . Highest-Rated Ally . | . . . . . . Total Orders . | . . . . . . Ally Attacks . | . . . . . . Total Damage . | . . . . . . Kills . | . . . . . . Allies Corrupted . | . . . . . . Allies Melted . | . . . . . . Intel | -11 -10 -9 -8 -7 -7 ------- Run | Yrd Mat Mat Mat Fac Sto Active Infowar (turns) 4184 | 6 515 699 1590 837 537 Optics 2963 | . . . 1589 837 537 Sensors 316 | . . . 1 1 314 Terrain 2090 | 6 515 699 870 . . Traps 1028 | . . . . 574 454 Robot Analysis Total . | . . . . . . Derelict Logs Recovered . | . . . . . . Drone Launches . | . . . . . . Drone Recoveries . | . . . . . . Exploration | -11 -10 -9 -8 -7 -7 ------------- Run | Yrd Mat Mat Mat Fac Sto Turns Passed 5404 | 130 1310 994 1590 837 543 Spaces Moved 1912 | 73 543 282 389 493 132 Core 19 | 19 . . . . . Treads 1251 | 37 543 282 389 . . Legs . | . . . . . . Wheels 543 | 17 . . . 493 33 Hover . | . . . . . . Flight 99 | . . . . . 99 Fastest Speed 50 | 50 160 320 320 110 120 Average Speed 228 | 120 201 320 353 117 252 Slowest Speed 561 | 160 320 320 560 125 561 Overloaded Moves . | . . . . . . Propulsion Burnouts . | . . . . . . Robots Hopped . | . . . . . . Potential Cave-ins . | . . . . . . Cave-ins Triggered . | . . . . . . Exploration Rate (%) 27 | 4 64 27 36 14 20 Regions Visited 5 Branch Regions 1 Pre-discovered Areas . | . . . . . . Known Exits Taken 1 | . . 1 . . . Unknown Exits Taken 4 | 1 1 . 1 1 . Scrap Searched . | . . . . . . Spaces Dug 18 | . . . . 12 6 Terrain Destroyed 126 | . . . . 12 114 Melee 18 | . . . . 12 6 Projectile . | . . . . . . AOE 108 | . . . . . 108 Terrain Rammed . | . . . . . . Walls Destroyed . | . . . . . . Machines Disabled . | . . . . . . Actions | -11 -10 -9 -8 -7 -7 --------- Run | Yrd Mat Mat Mat Fac Sto Total 2576 | 100 693 340 508 669 266 Wait 229 | 3 75 1 20 70 60 Move 1907 | 72 542 281 388 492 132 Hop . | . . . . . . Pick Up 79 | 7 25 13 12 18 4 Fast Attach 13 | 5 . 1 5 2 . Attach 31 | 2 . 3 2 5 19 Detach 2 | . . . . . 2 Swap 44 | 4 7 4 15 9 5 Drop 62 | 1 9 13 16 21 2 Fire 143 | 6 34 21 50 15 17 Melee 60 | . . . . 37 23 Ram 2 | . . . . . 2 Kick . | . . . . . . Crush 4 | . 1 3 . . . Escape Stasis . | . . . . . . Rewire . | . . . . . . Trap . | . . . . . . Miscellaneous . | . . . . . . Route ------- -11/Scrapyard -10/Materials (discovered 3 exits: *Mat x2 / [*Min]) -9/Materials (discovered 3 exits: *Mat x3) -8/Materials -7/Factory -7/Storage History --------- Turn | Location | Event 10 | -11/Scrapyard | Discovered new exit (range 15) 131 | -11/Scrapyard | Entered Materials 277 | -10/Materials | Discovered new exit (range 12) 326 | -10/Materials | Build established: Mutant 592 | -10/Materials | Discovered new exit (range 16) 631 | -10/Materials | Derelicts attacked the area 813 | -10/Materials | Discovered new exit (range 16) 1441 | -10/Materials | Entered another Materials area 1441 | -9/Materials | Evolved 2 slots: Utility x2 1890 | -9/Materials | Identified exit to Materials 2435 | -9/Materials | Entered another Materials area 2435 | -8/Materials | Evolved 2 slots: Propulsion x1, Utility x1 2740 | -8/Materials | Build established: Scavenger-Mutant 3334 | -8/Materials | Garrison activated, responded to threat 3476 | -8/Materials | Discovered new exit (range 18) 3739 | -8/Materials | Garrison activated, responded to threat 4025 | -8/Materials | Entered Factory 4025 | -7/Factory | Evolved 2 slots: Propulsion x1, Utility x1 4616 | -7/Factory | Build established: Mutant 4806 | -7/Factory | Discovered new exit (range 12) 4862 | -7/Factory | Entered Storage 5044 | -7/Storage | Lost 6 parts (3n1u2w) 5342 | -7/Storage | Core integrity fell below 50% 5372 | -7/Storage | Lost 8 parts (4n2u2w) 5395 | -7/Storage | Core integrity fell below 20% 5405 | -7/Storage | Destroyed by Y-54 Guardian with Flak Gun Last Messages --------------- 05341_ 7 Matter crushed. 05341_ Sensor Array destroyed. 05346_ System corrupted: Matter fused (-9). 05351_ The unstable cave ceiling collapses. 05375_ M-13 Machinist repairs Y-54 Guardian. 05375_ Adv. Weight Redist. System destroyed. 05382_ Mic. Nuclear Core destroyed. 05382_ Spear follow-up attack on Y-54 Guardian. 05387_ System corrupted: Matter fused (-5). 05388_ Flight Unit destroyed. 05394_ Great Maul destroyed. 05395_ The unstable cave ceiling collapses. 05396_ M-13 Machinist repairs Y-54 Guardian Lgt. Treads. 05396_ Slammed into Y-54 Guardian. 05398_ Imp. Propulsion Shielding destroyed. 05398_ VTOL Module destroyed. 05401_ Slammed into Y-54 Guardian. 05402_ System corrupted: Heat flow error (+280). Map ----- +----------------------------------------------------+ | ?????????????????????????????????????????? | | ?????????????????????????????????????????? | | ?????????????????????????????????????????? | | ?????????????????????????????????????????? | | ?????????????????????????????????????????? | | ?????????????????????????????????????????? | | ?????????????????????????????????????????? | | ??#######????????????????????????????????? | | ###"""""###??????????????????????????????? | | ###""T""####??????????##?????????????????? | | # ##??????? ?? #?? #?????????????? | | # ##??????""? #? #?????????????? | | # #??????"" # ?????????????? | | # """ """ #??????"" ????????????? | | # """ """ #????? " #????????????? | | # """ """ #????? ?????????????? | | # ##??? ? ! /###????????????? | | # #??? ? ?????????????? | | #####+######?? ### # """ ????????????? | | ??# ######## # " =!??????????? | | ??# *% #### =! !#???????? | | ??# a *%= #???????? | | ??# ## === ?????????? | | ??# #####+## # # ?????????? | | ??## ## Y ?????????? | | ???# ## """ """@#=## ??????????? | | ???# ## """m""" ####?? ??????????? | | ???# ## """ """Y#???????? ???????????? | | ???# ## #??????????????????????? | | ???# ## Y #??????????????????????? | | ???# ## #??????????????????????? | | ???# ## #??????????????????????? | | ???# ############??????????????????????? | | ???# ###???????????????????????????????? | | ???# #=#???????????????????????????????? | | ???# #T#???????????????????????????????? | | ???# #%"???????????????????????????????? | | ???# % #!"???????????????????????????????? | | ???#=[%+*"???????????????????????????????? | | ???# %###???????????????????????????????? | | ???# #?????????????????????????????????? | | ???# #?????????????????????????????????? | | ???# #?????????????????????????????????? | | ???# #?????????????????????????????????? | | ???#####?????????????????????????????????? | | ?????????????????????????????????????????? | | ?????????????????????????????????????????? | | ?????????????????????????????????????????? | | ?????????????????????????????????????????? | | ?????????????????????????????????????????? | +----------------------------------------------------+ Best States ------------- Heat Dissipation 48 Energy Generation 16 Energy Capacity 290 Matter Stores 300 Matter Capacity 300 Sight Range 18 Robot Scan Range 14 Terrain Scan Range 16 Terrain Scan Density 10 Additional Mass Support 9 Armor Coverage 150 Propulsion Shielding 66 Melee Speed Boost 20 Evasion (%) 50 Targeting Accuracy 16 Recoil Reduction 2 Item Schematics ----------------- None Robot Schematics ------------------ None Fabricated ------------ Nothing Repaired ---------- Nothing Studied --------- None Alien Tech Used ----------------- None Achievements -------------- None Challenges ------------ None Game ------ Seed WeaponSensorAmplifier Manual? 0 Play Time 00:39:01 Cumulative 86.1 hours Start 2026.08.16 @ 19:38:15 End 2026.08.16 @ 20:17:33 Sessions 1 Manual Loads 0 Difficulty Rogue Special Mode None Game No. 156 Rogue 156 Adventurer 0 Explorer 0 Win Type - Total 0 Types 0/0/0/0/0/0/0/0/0/0 Lore% 14 Gallery% 38 Achievement% 23 Wizard Run 0 Options --------- Layout 1 ASCII 0 Keyboard 1 Movement Numpad Keybinds 0 Fullscreen 2 Font 32/SmallcapsGlow Map View 50x35 Zoom Use 0% Tactical HUD 1 Map Filters NONE Filters NONE Steam 1 RUN: 63abcb70-0644-4f53-b4c0-6e100d06a67c